bitfinex/quotes_ETHUSD_20250414
["timestamp","ask_amount","ask_price","bid_price","bid_amount"]
[1744603932756,4.97957862,1631.7,1631.3,5.11786136]
[1744603932930,4.90296,1631.7,1631.3,5.11786136]
[1744603933331,9.80603,1631.7,1631.3,5.11786136]
[1744603933862,4.90296,1631.7,1631.3,10.02179136]
[1744603934036,9.806,1631.7,1631.3,6.36907089]
[1744603935064,4.97977863,1631.6,1631.3,6.36907089]
[1744603935264,4.90316,1631.6,1631.3,6.36907089]
[1744603935937,58.30959,1632.0,1631.5,4.9032]
[1744603936260,4.97900392,1631.9,1631.6,0.20873162]
[1744603936869,9.88142392,1631.9,1631.6,0.20873162]
[1744603937037,4.97900392,1631.9,1631.6,0.20873162]
[1744603937237,4.90266,1631.8,1631.6,0.20873162]
[1744603937568,4.90286,1631.7,1631.6,0.20873162]
[1744603937777,4.90286,1631.7,1631.4,0.7946]
[1744603937933,4.90286,1631.7,1631.6,0.20807191]
[1744603938130,4.90286,1631.7,1631.4,1.97997395]
[1744603938336,4.90286,1631.7,1631.6,0.2081805]
[1744603938869,4.90286,1631.7,1631.4,6.88373395]
[1744603939062,4.97921044,1631.8,1631.5,0.20874287]
[1744603939264,0.07661162,1631.7,1631.5,5.11219287]
[1744603939571,4.9026,1631.8,1631.5,5.11219287]
[1744603939939,9.80541,1631.8,1631.5,0.20874287]
[1744603940336,4.90288,1631.7,1631.5,0.20874287]
[1744603940835,4.9026,1631.8,1631.5,0.20874287]
[1744603941836,9.80542,1631.8,1631.5,0.20874287]
[1744603942041,4.9026,1631.8,1631.5,0.20874287]
[1744603942537,0.07661159,1631.7,1631.5,0.20874287]
[1744603943168,4.97921159,1631.8,1631.5,5.11218287]
[1744603943872,4.97921159,1631.8,1631.5,0.20874287]
[1744603944360,4.97921159,1631.8,1631.5,5.11215287]
[1744603944951,4.97921159,1631.8,1631.5,0.20874287]
[1744603945875,0.07661159,1631.8,1631.5,10.01551287]
[1744603946051,0.07661159,1631.8,1631.5,5.11207287]
[1744603946442,4.90304,1631.7,1631.5,0.20874287]
[1744603946644,4.97977155,1631.6,1631.5,0.20874287]
[1744603946839,4.97977155,1631.6,1631.2,10.57235]
[1744603947277,4.97977155,1631.6,1631.3,0.2091107]
[1744603948444,4.90346,1631.5,1631.3,0.2091107]
[1744603949184,4.98038372,1631.4,1631.3,0.2091107]
[1744603949356,6.76066809,1631.4,1631.3,0.2091107]
[1744603949556,6.76066809,1631.4,1631.0,5.66872]
[1744603949557,11.66460809,1631.4,1631.0,5.66872]
[1744603949797,4.90412,1631.3,1631.0,0.7638]
[1744603950086,0.07663088,1631.2,1630.8,0.7638]
[1744603950287,4.90514,1631.0,1630.6,4.90605]
[1744603950486,4.90514,1631.0,1630.5,6.75945848]
[1744603950487,4.98192208,1630.9,1630.5,6.75945848]
[1744603950789,9.88745208,1630.9,1630.7,0.19461131]
[1744603951188,4.98192208,1630.9,1630.7,0.19461131]
[1744603951566,4.98192208,1630.9,1630.5,5.67005]
[1744603953391,0.07665208,1630.9,1630.6,0.55]
[1744603953592,4.98188613,1631.0,1630.6,6.078014]
[1744603954290,0.07665613,1631.0,1630.6,6.078014]
[1744603954487,5.77323625,1631.1,1630.7,4.90575]
[1744603954862,9.8102,1631.0,1630.6,6.078014]
[1744603955285,4.90527,1630.9,1630.6,5.45599]
[1744603957088,4.90589,1630.7,1630.3,6.16]
[1744603957306,4.90589,1630.7,1630.4,4.90666]
[1744603957459,10.67991221,1630.8,1630.4,4.90662]
[1744603958091,4.9059,1630.7,1630.4,4.90662]
[1744603958307,0.07666224,1630.6,1630.3,4.90703]
[1744603958589,0.07666224,1630.6,1630.3,5.829113]
[1744603958590,4.90617,1630.6,1630.3,5.829113]
[1744603959390,9.88862283,1630.7,1630.3,5.829113]
[1744603959887,4.90618,1630.6,1630.2,6.22117]
[1744603960092,4.90618,1630.6,1630.2,11.12836]
[1744603960593,9.81256,1630.6,1630.2,6.22099]
[1744603960961,4.90701,1630.4,1630.1,0.02]
[1744603961170,5.56124402,1630.4,1630.1,0.02]
[1744603961370,4.98368638,1630.4,1630.1,0.02]
[1744603962115,5.69927,1630.2,1630.1,0.02]
[1744603962263,5.77595765,1630.2,1630.1,0.02]
[1744603964398,11.35585,1630.4,1630.1,0.02]
[1744603964579,16.33950006,1630.4,1630.1,0.7838]
[1744603964779,13.36899001,1630.4,1630.1,0.7838]
[1744603964980,4.90708,1630.3,1630.1,0.02]
[1744603966006,4.98376005,1630.3,1630.1,0.02]
[1744603967199,0.07668005,1630.3,1630.1,0.02]
[1744603967400,11.35585,1630.4,1630.1,5.69138]
[1744603967703,13.43795198,1630.4,1630.1,0.7838]
[1744603967904,13.361272,1630.4,1630.1,0.7838]
[1744603968606,13.361272,1630.4,1630.1,5.69144]
[1744603968976,13.361272,1630.4,1630.0,4.90786]
[1744603968977,0.8125,1629.9,1629.2,0.7596]
[1744603969273,4.9095,1629.5,1629.2,0.7596]
[1744603969488,4.98621436,1629.5,1629.4,0.18507312]
[1744603969692,4.98591446,1629.6,1629.2,0.7596]
[1744603969870,9.89534446,1629.6,1629.4,0.18213447]
[1744603970072,10.63169,1629.5,1629.1,0.02]
[1744603970389,4.9865015,1629.4,1629.1,0.02]
[1744603972347,4.91037,1629.3,1629.1,0.02]
[1744603972480,4.91038,1629.2,1629.1,0.02]
[1744603972810,4.91037,1629.3,1629.1,0.02]
[1744603973410,5.90005915,1629.3,1629.1,0.02]
[1744603973617,5.89998915,1629.3,1629.1,0.02]
[1744603974008,0.07673124,1629.2,1629.1,0.02]
[1744603974211,5.97672038,1629.3,1629.1,0.02]
[1744603976113,10.88699038,1629.3,1629.1,0.02]
[1744603976812,10.88697038,1629.3,1629.1,0.02]
[1744603977113,1.06642038,1629.3,1629.1,0.02]
[1744603977480,0.07673108,1629.4,1629.1,4.93056]
[1744603978211,4.98653108,1629.4,1629.1,0.02]
[1744603979915,4.98653108,1629.4,1629.1,4.93066]
[1744603980117,4.98653108,1629.4,1629.1,0.02]
[1744603980618,4.91009,1629.3,1629.1,0.02]
[1744603981120,9.89657108,1629.4,1629.1,0.02]
[1744603981325,11.53142819,1629.4,1629.1,0.02]
[1744603981509,6.62138819,1629.4,1629.1,4.93067]
[1744603981712,6.62138819,1629.4,1629.1,0.02]
[1744603982899,1.71158819,1629.4,1629.1,0.02]
[1744603983096,1.63485711,1629.4,1629.1,4.93051]
[1744603983312,11.43823222,1629.5,1629.1,9.84107]
[1744603983515,4.91027,1629.3,1629.1,0.02]
[1744603983715,4.98699932,1629.3,1629.1,0.02]
[1744603983910,9.89730932,1629.3,1629.1,0.02]
[1744603984228,4.98699932,1629.3,1629.1,0.02]
[1744603984396,5.97668125,1629.3,1629.1,0.02]
[1744603984595,11.36152,1629.5,1629.1,4.93059]
[1744603984798,16.34789294,1629.5,1629.1,4.93058]
[1744603985094,4.9102,1629.3,1629.1,0.02]
[1744603985298,9.89722469,1629.3,1629.1,0.02]
[1744603985932,10.64722469,1629.3,1629.1,0.02]
[1744603986154,11.71194716,1629.3,1629.1,0.02]
[1744603987434,6.80164716,1629.3,1629.1,0.02]
[1744603987640,11.71189716,1629.3,1629.1,0.02]
[1744603989145,6.80164716,1629.3,1629.1,0.02]
[1744603989716,6.05164716,1629.3,1629.1,0.02]
[1744603989907,4.98692469,1629.3,1629.1,0.02]
[1744603990313,0.07672469,1629.3,1629.1,0.02]
[1744603990816,4.98680469,1629.3,1629.1,0.02]
[1744603991349,0.07672469,1629.3,1629.1,0.02]
[1744603991642,0.07672469,1629.3,1629.1,4.93063]
[1744603991843,0.07672875,1629.6,1629.3,0.55]
[1744603992048,5.73509064,1629.9,1629.5,4.9093]
[1744603992225,9.89354064,1629.9,1629.5,4.9093]
[1744603992420,11.6027947,1629.9,1629.5,4.9093]
[1744603992623,6.6943447,1629.9,1629.5,9.81864]
[1744603992964,1.7859647,1629.9,1629.4,0.8113]
[1744603993161,4.90918,1629.6,1629.4,0.8113]
[1744603993524,4.90962,1629.5,1629.3,0.8113]
[1744603993859,0.98955109,1629.5,1629.3,0.8113]
[1744603994171,5.89908109,1629.5,1629.2,0.8113]
[1744603994363,0.98955109,1629.5,1629.2,5.72161]
[1744603995670,0.07671883,1629.4,1629.2,5.72161]
[1744603997171,0.07672347,1629.6,1629.3,4.91008]
[1744603997382,0.07672347,1629.6,1629.4,4.90972]
[1744603997588,0.65028582,1629.6,1629.4,4.90972]
[1744603997886,0.65028582,1629.6,1629.3,4.91008]
[1744603998580,5.55954582,1629.6,1629.3,4.91008]
[1744604000274,10.46889582,1629.6,1629.2,5.72163]
[1744604000864,5.55954582,1629.6,1629.2,10.6319]
[1744604001063,5.55954582,1629.6,1629.3,4.91]
[1744604001064,0.65028582,1629.6,1629.3,4.91]
[1744604001271,5.7356087,1629.7,1629.3,4.90995]
[1744604001573,5.7356087,1629.7,1629.3,9.8199]
[1744604001772,10.6447187,1629.7,1629.3,4.90995]
[1744604001980,5.7356087,1629.7,1629.3,4.90995]
[1744604002185,6.80003057,1629.7,1629.3,4.90994]
[1744604002488,4.90861,1629.8,1629.2,0.84213758]
[1744604002489,5.80282479,1629.8,1629.5,5.67362]
[1744604002641,0.07671479,1629.8,1629.5,10.58294]
[1744604004056,4.98547479,1629.8,1629.5,0.7642]
[1744604004483,9.89434479,1629.8,1629.5,0.7642]
[1744604004651,4.98547479,1629.8,1629.5,0.7642]
[1744604004852,6.44577968,1629.8,1629.5,0.7642]
[1744604005183,6.44577968,1629.8,1629.5,5.6736]
[1744604005977,11.35456968,1629.8,1629.5,0.7642]
[1744604006195,4.9093,1629.6,1629.3,0.7642]
[1744604006399,9.89547307,1629.6,1629.3,0.7642]
[1744604006555,4.90949,1629.5,1629.2,4.91031]
[1744604006755,6.05723038,1629.6,1629.1,6.9442]
[1744604006970,6.05723038,1629.6,1629.2,9.82039]
[1744604007152,6.05723038,1629.6,1629.3,4.91007]
[1744604007493,10.96659038,1629.6,1629.2,4.91017]
[1744604007685,6.05723038,1629.6,1629.2,9.82045]
[1744604008058,6.05723038,1629.6,1629.2,4.91017]
[1744604008377,10.96659038,1629.6,1629.2,4.91017]
[1744604008589,1.09665904,1629.5,1629.2,4.91017]
[1744604008769,6.00625904,1629.5,1629.2,4.91017]
[1744604009284,1.09665904,1629.5,1629.2,4.91017]
[1744604009493,0.0767115,1629.6,1629.3,4.90998]
[1744604010487,4.9860415,1629.6,1629.2,4.91034]
[1744604010884,4.90963,1629.5,1629.1,10.60536]
[1744604011065,4.90963,1629.5,1629.2,0.55]
[1744604012197,4.90963,1629.5,1629.1,5.69473]
[1744604012198,4.98654308,1629.4,1629.1,5.69473]
[1744604012392,4.90983,1629.4,1629.1,5.69473]
[1744604012887,5.89919715,1629.5,1629.1,10.60531]
[1744604013455,0.98956715,1629.5,1629.1,5.69483]
[1744604013656,9.89525834,1629.6,1629.2,4.91026]
[1744604014696,4.90954,1629.5,1629.1,5.69483]
[1744604014912,9.81919,1629.5,1629.1,5.69483]
[1744604015701,4.9098,1629.4,1629.1,5.69483]
[1744604016700,4.90954,1629.5,1629.1,5.69472]
[1744604016863,4.90954,1629.5,1629.1,6.319192]
[1744604017202,4.90954,1629.5,1629.1,11.229772]
[1744604017691,4.90954,1629.5,1629.2,4.9103]
[1744604018091,4.90954,1629.5,1629.2,4.9411404]
[1744604018296,9.89522834,1629.6,1629.2,4.9103]
[1744604018459,4.90951,1629.5,1629.2,4.9103]
[1744604018792,4.90832,1629.9,1629.5,4.90946]
[1744604019003,9.89346944,1629.9,1629.6,0.7648]
[1744604019207,4.90867,1629.8,1629.6,0.7648]
[1744604019679,9.81749,1629.8,1629.6,0.7648]
[1744604020398,4.90867,1629.8,1629.6,0.7648]
[1744604020965,9.81747,1629.8,1629.6,0.7648]
[1744604022397,4.90867,1629.8,1629.6,0.7648]
[1744604023594,4.90831,1629.9,1629.6,0.7648]
[1744604023766,4.9850089,1629.9,1629.6,0.7648]
[1744604024104,4.90831,1629.9,1629.6,0.7648]
[1744604024501,11.34999,1630.0,1629.6,5.67385]
[1744604024875,4.90839,1629.9,1629.6,0.7648]
[1744604026005,4.90839,1629.9,1629.6,5.67396]
[1744604026165,9.81686,1629.9,1629.6,0.7648]
[1744604026469,4.90839,1629.9,1629.6,0.7648]
[1744604026670,11.35001,1630.0,1629.6,5.67396]
[1744604026865,11.42670367,1630.0,1629.6,10.58297]
[1744604027095,11.35001,1630.0,1629.6,10.58297]
[1744604027299,11.35001,1630.0,1629.7,4.93963724]
[1744604027518,4.90772,1630.1,1629.8,1.3148]
[1744604027702,9.8149,1630.2,1629.8,6.22325]
[1744604027870,4.90742,1630.2,1629.8,6.22321]
[1744604028206,4.9075,1630.2,1630.0,0.7648]
[1744604028570,9.81507,1630.2,1630.0,0.7648]
[1744604028772,4.90782,1630.1,1629.8,1.3148]
[1744604029227,4.90805,1630.0,1629.8,0.7648]
[1744604029500,4.90827,1629.9,1629.7,1.3319]
[1744604029880,4.90827,1629.9,1629.7,0.7819]
[1744604030105,9.81625,1630.0,1629.7,0.7819]
[1744604030472,10.88476397,1630.0,1629.7,0.7819]
[1744604030674,4.90805,1630.0,1629.8,0.14557327]
[1744604035813,9.8162,1630.0,1629.8,0.14557327]
[1744604036017,4.90827,1629.9,1629.8,0.14557327]
[1744604036717,5.70047,1629.9,1629.8,0.14557327]
[1744604036910,5.77716323,1629.9,1629.8,0.14557327]
[1744604037113,4.90873,1629.8,1629.5,1.3319]
[1744604037524,4.90873,1629.8,1629.6,0.14680937]
[1744604038922,10.68507842,1630.0,1629.6,5.05596937]
[1744604039122,4.98471842,1630.0,1629.7,4.90883]
[1744604039494,4.98471842,1630.0,1629.8,0.14546452]
[1744604040820,9.89298842,1630.0,1629.8,0.14546452]
[1744604041047,9.89298842,1630.0,1629.6,4.90908]
[1744604041252,9.89298842,1630.0,1629.9,0.1451671]
[1744604041816,9.89298842,1630.0,1629.6,4.90908]
[1744604042016,9.89298842,1630.0,1629.9,0.1451671]
[1744604042221,4.98439322,1630.1,1629.8,4.90854]
[1744604042411,4.90779,1630.1,1629.9,0.1451671]
[1744604042607,11.44822703,1630.1,1629.9,0.1451671]
[1744604042911,4.90797,1630.0,1629.7,5.69053]
[1744604043303,4.90797,1630.0,1629.8,0.14626411]
[1744604043499,4.9849595,1629.9,1629.8,0.14626411]
[1744604043704,4.90888,1629.7,1629.5,0.7819]
[1744604044291,4.90888,1629.7,1629.4,1.3304]
[1744604044486,4.90888,1629.7,1629.4,7.04556355]
[1744604045026,4.90888,1629.7,1629.5,0.14839039]
[1744604045923,9.89466385,1629.7,1629.5,0.14839039]
[1744604046121,4.98558385,1629.7,1629.5,0.14839039]
[1744604046535,5.68468,1629.6,1629.5,0.14839039]
[1744604046831,4.90966,1629.5,1629.1,5.71105]
[1744604047033,4.90966,1629.5,1629.2,0.15008217]
[1744604047209,4.9098,1629.4,1629.1,5.71105]
[1744604047410,4.98637502,1629.5,1629.2,0.150191]
[1744604047709,6.75172639,1629.6,1629.2,4.91027]
[1744604047710,11.73784091,1629.6,1629.2,4.91027]
[1744604047932,10.67081452,1629.6,1629.3,0.14962699]
[1744604048703,10.67085452,1629.6,1629.3,0.14962699]
[1744604049402,4.90948,1629.5,1629.3,0.14962699]
[1744604052594,4.90948,1629.5,1629.1,10.62144]
[1744604052801,4.90948,1629.5,1629.2,0.15213158]
[1744604053142,4.90948,1629.5,1629.1,10.62144]
[1744604053308,4.90948,1629.5,1629.3,0.15156758]
[1744604053503,4.90948,1629.5,1629.2,4.91035]
[1744604053826,4.90948,1629.5,1629.3,0.15156758]
[1744604057524,10.67075452,1629.6,1629.3,0.15156758]
[1744604057762,4.90954,1629.5,1629.3,0.15156758]
[1744604057947,4.90978,1629.4,1629.3,0.15156758]
[1744604058467,4.90978,1629.4,1629.1,6.87493016]
[1744604058468,4.91024,1629.3,1629.1,0.02]
[1744604058617,4.90988,1629.4,1629.1,0.02]
[1744604058949,4.98626025,1629.5,1629.1,4.93055]
[1744604059248,4.90989,1629.4,1629.1,0.02]
[1744604059551,4.91009,1629.3,1629.1,0.02]
[1744604060119,10.67258348,1629.3,1629.1,0.02]
[1744604060466,4.91038,1629.2,1629.1,0.02]
[1744604061933,4.91038,1629.2,1629.1,0.17168637]
[1744604066663,6.82958123,1629.3,1629.1,0.17168637]
[1744604067343,4.98682288,1629.3,1629.1,0.17168637]
[1744604067655,4.91038,1629.2,1629.1,0.17168637]
[1744604068571,5.69548,1629.2,1629.1,0.17168637]
[1744604069070,5.77222163,1629.2,1629.1,0.17168637]
[1744604070634,0.07674163,1629.2,1629.1,0.17168637]
[1744604070834,4.90988,1629.4,1629.1,0.17168637]
[1744604071055,0.07674397,1629.5,1629.2,5.74217]
[1744604071271,0.07674397,1629.5,1629.3,0.15732603]
[1744604071844,4.98622397,1629.5,1629.3,0.15732603]
[1744604072077,4.90978,1629.4,1629.3,0.15732603]
[1744604072589,4.98622397,1629.5,1629.3,0.15732603]
[1744604073070,9.89592397,1629.5,1629.3,0.15732603]
[1744604073259,4.90978,1629.4,1629.3,0.15732603]
[1744604074156,5.69488,1629.4,1629.3,0.15732603]
[1744604074345,6.7629904,1629.4,1629.3,0.15732603]
[1744604074546,9.82042,1629.3,1629.1,0.02]
[1744604074741,9.89714494,1629.3,1629.1,0.02]
[1744604074936,9.89714494,1629.3,1629.2,0.15575429]
[1744604075170,4.98686494,1629.3,1629.2,0.15575429]
[1744604075658,4.98654949,1629.4,1629.2,0.15575429]
[1744604075835,4.98654949,1629.4,1629.1,4.93062]
[1744604076042,4.98654949,1629.4,1629.2,0.15575429]
[1744604076242,0.07672949,1629.4,1629.1,6.00103102]
[1744604076439,0.07672949,1629.4,1629.2,0.15575429]
[1744604076639,0.07672949,1629.4,1629.1,6.00097102]
[1744604076840,0.07672949,1629.4,1629.2,0.15575429]
[1744604077044,0.07672949,1629.4,1629.1,6.00097102]
[1744604077246,0.07672949,1629.4,1629.2,0.15575429]
[1744604077443,0.07672949,1629.4,1629.1,6.00097102]
[1744604077681,0.07672949,1629.4,1629.2,0.15575429]
[1744604077868,0.07672949,1629.4,1629.1,6.00097102]
[1744604078063,0.07672949,1629.4,1629.2,0.15575429]
[1744604078270,0.07672949,1629.4,1629.1,6.00097102]
[1744604078470,4.98652949,1629.4,1629.2,0.15575429]
[1744604078780,4.98652949,1629.4,1629.1,4.93056]
[1744604078981,4.98652949,1629.4,1629.3,0.15519032]
[1744604079183,4.98652949,1629.4,1629.2,0.15575429]
[1744604079370,4.98652949,1629.4,1629.3,0.15519032]
[1744604079770,4.98652949,1629.4,1629.1,4.93056]
[1744604079965,0.07672949,1629.4,1629.3,0.15519032]
[1744604080173,0.07672949,1629.4,1629.2,0.15575429]
[1744604080481,0.07672949,1629.4,1629.3,0.15519032]
[1744604080681,0.07672949,1629.4,1629.1,4.93056]
[1744604080884,0.07672949,1629.4,1629.2,0.15575429]
[1744604081081,0.07672949,1629.4,1629.1,4.93056]
[1744604081283,0.07672949,1629.4,1629.2,0.15575429]
[1744604081447,4.98652949,1629.4,1629.1,4.93056]
[1744604081650,4.98652949,1629.4,1629.2,0.15575429]
[1744604081850,10.96721044,1629.4,1629.1,0.02]
[1744604082176,4.91008,1629.3,1629.2,0.15575429]
[1744604082547,4.91008,1629.3,1629.1,0.02]
[1744604082752,4.91008,1629.3,1629.2,0.15410387]
[1744604083161,4.91008,1629.3,1629.1,0.02]
[1744604083364,4.91008,1629.3,1629.2,0.15410387]
[1744604083684,4.91008,1629.3,1629.1,0.02]
[1744604083885,4.91008,1629.3,1629.2,0.15410387]
[1744604084181,5.72118,1629.2,1629.1,0.02]
[1744604084369,5.7979133,1629.2,1629.1,0.02]
[1744604086982,4.9871133,1629.2,1629.1,0.02]
[1744604087181,11.33808,1629.3,1629.1,0.02]
[1744604087485,6.428,1629.3,1629.1,0.02]
[1744604087785,6.428,1629.3,1629.1,5.501063]
[1744604088348,6.428,1629.3,1629.1,0.02]
[1744604090384,6.428,1629.3,1629.1,4.93066]
[1744604091475,6.428,1629.3,1629.1,0.02]
[1744604093090,6.50472435,1629.3,1629.1,0.02]
[1744604093290,6.428,1629.3,1629.1,0.02]
[1744604093792,6.428,1629.3,1629.1,0.590386]
[1744604093984,6.428,1629.3,1629.2,4.91038]
[1744604094291,5.79703061,1629.5,1629.2,4.91038]
[1744604094770,4.98623061,1629.5,1629.2,4.91038]
[1744604095501,4.98623061,1629.5,1629.1,9.84115]
[1744604096099,4.98623061,1629.5,1629.1,4.93057]
[1744604096699,4.98623061,1629.5,1629.1,9.84114]
[1744604097003,4.98623061,1629.5,1629.1,10.902554]
[1744604098803,4.98623061,1629.5,1629.1,5.991984]
[1744604099015,4.90979,1629.4,1629.1,5.991984]
[1744604099316,9.89589061,1629.5,1629.1,5.991944]
[1744604099517,9.89589061,1629.5,1629.1,4.93053]
[1744604099686,9.89597061,1629.5,1629.1,4.93053]
[1744604100711,4.98623061,1629.5,1629.1,9.84107]
[1744604100916,0.07672061,1629.5,1629.1,0.02]
[1744604101120,6.49771277,1629.7,1629.4,4.90958]
[1744604101273,6.49771277,1629.7,1629.4,5.72168]
[1744604101274,6.421,1629.7,1629.4,5.72168]
[1744604101617,6.421,1629.7,1629.4,6.784851]
[1744604101827,11.40661968,1629.7,1629.4,1.875271]
[1744604101975,4.91008,1629.3,1629.1,0.8321]
[1744604102324,4.98710149,1629.2,1629.1,0.02]
[1744604102820,5.76220149,1629.2,1629.1,0.02]
[1744604103034,7.78453825,1629.2,1629.1,0.02]
[1744604104005,5.76220149,1629.2,1629.1,0.02]
[1744604105188,0.07672149,1629.2,1629.1,0.02]
[1744604106074,12.186909,1629.3,1629.1,0.02]
[1744604108510,4.91038,1629.2,1629.1,0.02]
[1744604108875,5.68861,1629.5,1629.1,4.93051]
[1744604109080,0.07672391,1629.5,1629.2,1.286851]
[1744604109279,0.7791,1629.8,1629.4,4.90962]
[1744604109480,16.23775,1629.9,1629.5,5.70317]
[1744604109699,4.90862,1629.8,1629.5,5.70317]
[1744604109898,4.90888,1629.7,1629.5,0.7938]
[1744604110301,4.9853231,1629.8,1629.5,0.7938]
[1744604110488,4.90919,1629.6,1629.3,5.70384]
[1744604110675,5.68821,1629.7,1629.3,6.274224]
[1744604110882,10.59734,1629.7,1629.3,6.274224]
[1744604111088,0.7791,1629.7,1629.3,6.274104]
[1744604111313,4.9853731,1629.8,1629.5,4.90942]
[1744604111478,0.0767031,1629.8,1629.5,4.90942]
[1744604111682,6.49770136,1629.9,1629.6,5.70275]
[1744604112077,6.49770136,1629.9,1629.6,10.61179]
[1744604112282,6.421,1629.9,1629.6,5.70275]
[1744604113110,11.32927,1629.9,1629.6,0.7938]
[1744604113309,5.68771,1629.8,1629.4,5.70357]
[1744604113510,0.07669721,1629.7,1629.4,0.7938]
[1744604113814,4.98568721,1629.7,1629.4,5.70357]
[1744604113993,10.67322594,1629.8,1629.4,5.73439249]
[1744604114393,10.67322594,1629.8,1629.4,5.70357]
[1744604114603,5.76441594,1629.8,1629.4,10.61319]
[1744604114805,5.76441594,1629.8,1629.4,6.8217674]
[1744604115009,10.67322594,1629.8,1629.4,6.8217674]
[1744604115317,5.76441594,1629.8,1629.4,6.8217674]
[1744604115615,0.85580594,1629.8,1629.5,4.90942]
[1744604115803,6.421,1629.9,1629.6,5.70281]
[1744604116108,6.421,1629.9,1629.6,6.273091]
[1744604116307,6.421,1629.9,1629.7,9.81749]
[1744604116901,6.421,1629.9,1629.7,4.90874]
[1744604117506,6.421,1629.9,1629.6,6.273231]
[1744604117912,6.421,1629.9,1629.7,4.90885]
[1744604118292,0.0766917,1630.0,1629.7,4.90885]
[1744604118694,0.0766917,1630.0,1629.7,5.67747952]
[1744604118921,57.55476,1630.1,1629.7,5.67738952]
[1744604119125,62.46266,1630.1,1629.7,5.67738952]
[1744604119322,52.647,1630.1,1629.7,5.67734952]
[1744604119627,52.647,1630.1,1629.8,4.90844]
[1744604120523,57.55472,1630.1,1629.8,4.90844]
[1744604120899,57.55472,1630.1,1629.7,5.67734952]
[1744604121233,4.90799,1630.0,1629.7,5.67734952]
[1744604121595,57.55472,1630.1,1629.7,10.58608952]
[1744604121795,0.07669131,1630.0,1629.7,5.67734952]
[1744604122735,4.98484131,1630.0,1629.7,0.76862952]
[1744604122905,5.69407,1629.9,1629.6,0.7938]
[1744604123105,4.90869,1629.8,1629.6,0.7938]
[1744604123327,5.69407,1629.9,1629.6,0.7938]
[1744604123626,0.07669131,1630.0,1629.7,4.90873]
[1744604124012,9.89288131,1630.0,1629.6,5.73366564]
[1744604124212,4.98470131,1630.0,1629.6,5.73363551]
[1744604124414,4.98470131,1630.0,1629.6,6.30699906]
[1744604124613,4.98470131,1630.0,1629.7,4.90876]
[1744604125135,57.55471,1630.1,1629.7,4.90876]
[1744604125940,57.55471,1630.1,1629.8,4.90849]
[1744604126306,4.90771,1630.1,1629.8,4.90849]
[1744604126516,4.98440133,1630.1,1629.8,4.90849]
[1744604127838,0.07669133,1630.1,1629.8,4.90842]
[1744604128037,4.98447133,1630.1,1629.7,4.90884]
[1744604128214,4.98447133,1630.1,1629.7,5.53644036]
[1744604128604,4.98447133,1630.1,1629.7,10.44528036]
[1744604129515,0.07669133,1630.1,1629.7,0.62760036]
[1744604129718,5.69412,1629.9,1629.6,0.7938]
[1744604129999,5.77081707,1629.9,1629.6,5.70294]
[1744604130444,5.69412,1629.9,1629.6,5.70294]
[1744604130836,0.7857,1629.9,1629.6,5.70286]
[1744604131142,4.98466697,1630.0,1629.7,4.90885]
[1744604131737,9.89286697,1630.0,1629.6,5.70286]
[1744604131936,4.98466697,1630.0,1629.6,11.67311]
[1744604132246,4.98466697,1630.0,1629.7,4.90883]
[1744604133647,9.89281697,1630.0,1629.6,6.76405]
[1744604134011,4.98466697,1630.0,1629.6,6.76405]
[1744604134216,4.98466697,1630.0,1629.7,4.90885]
[1744604134415,4.98466697,1630.0,1629.6,11.67308]
[1744604135145,4.98466697,1630.0,1629.7,4.90884]
[1744604135531,4.98466697,1630.0,1629.6,6.76405]
[1744604135532,9.89288697,1630.0,1629.6,6.76405]
[1744604135731,5.6791,1629.9,1629.6,1.06123]
[1744604135952,5.6791,1629.9,1629.6,5.97032]
[1744604136374,0.7708,1629.9,1629.6,10.87938]
[1744604136650,5.67907,1629.9,1629.7,1.087938]
[1744604136830,5.67907,1629.9,1629.6,4.90906]
[1744604137029,4.98545693,1629.8,1629.4,6.0280774]
[1744604137430,4.90892,1629.7,1629.4,6.0280774]
[1744604138162,4.98545693,1629.8,1629.4,6.0280074]
[1744604138336,4.98545693,1629.8,1629.5,4.90944]
[1744604139356,10.66425772,1629.9,1629.5,6.00318474]
[1744604139727,5.75578772,1629.9,1629.5,10.91242474]
[1744604140123,5.75578772,1629.9,1629.5,6.00308474]
[1744604140532,4.9853312,1629.8,1629.5,6.00308474]
[1744604141132,0.7708,1629.7,1629.3,0.79]
[1744604141356,0.7708,1629.7,1629.4,4.90965]
[1744604141565,0.7708,1629.7,1629.5,4.90932]
[1744604142725,4.9853012,1629.8,1629.5,9.81867]
[1744604142726,0.8475012,1629.8,1629.5,9.81867]
[1744604142930,11.31897,1630.0,1629.7,4.90871]
[1744604142931,6.411,1630.0,1629.7,4.90871]
[1744604143127,0.07669649,1630.1,1629.9,4.90813]
[1744604143333,7.25848747,1630.3,1630.0,4.90783]
[1744604143568,0.07668747,1630.3,1630.0,9.81566]
[1744604143766,4.90729,1630.3,1629.8,5.69842]
[1744604143978,4.98430844,1630.2,1629.8,5.69842]
[1744604144267,5.67858,1630.1,1629.7,4.90885]
[1744604144443,5.67858,1630.1,1629.7,9.81755]
[1744604144631,5.67858,1630.1,1629.8,0.14611289]
[1744604144964,10.58646,1630.1,1629.8,0.14611289]
[1744604145161,1.91380252,1630.1,1629.8,5.05440289]
[1744604145356,0.7708,1630.1,1629.9,4.90815]
[1744604146372,5.75486843,1630.2,1629.9,4.90815]
[1744604147229,0.7708,1630.2,1629.9,5.6981]
[1744604147435,5.75465219,1630.3,1629.9,5.6981]
[1744604147784,4.98349076,1630.4,1630.1,4.90766]
[1744604148073,0.07668076,1630.4,1630.1,4.90766]
[1744604148252,0.07668076,1630.4,1630.2,0.14281465]
[1744604148641,4.98347076,1630.4,1630.2,0.14281465]
[1744604148842,6.99064884,1630.4,1630.2,0.14281465]
[1744604149156,6.99064884,1630.4,1630.0,4.90786]
[1744604149358,4.98347076,1630.4,1630.0,4.90782]
[1744604149563,4.98347076,1630.4,1629.9,5.69823]